fUST/lending_fUST_20251224
["ID","MTS","AMOUNT","RATE_DAILY","PERIOD"]
[399579369,1766519869322,-496.66397761,6.818e-05,2]
[399579370,1766519870929,-491.43460986,6.818e-05,2]
[399579371,1766519873604,-565.21,6.818e-05,2]
[399579372,1766519874104,150.0,4.2e-07,2]
[399579373,1766519875118,150.0,4.2e-07,2]
[399579374,1766519875751,-518.0,6.75e-05,2]
[399579375,1766519876525,150.0,4.2e-07,2]
[399579376,1766519877990,150.0,4.2e-07,2]
[399579377,1766519878017,-291.90579301,6.75e-05,2]
[399579378,1766519879017,150.0,4.2e-07,2]
[399579379,1766519879052,-4190.09420699,6.75e-05,2]
[399579380,1766519879084,-1619.82158602,6.818e-05,2]
[399579381,1766519879145,-1826.86982651,6.818e-05,2]
[399579382,1766519879176,-500.0,6.886e-05,2]
[399579383,1766519879204,-500.0,6.886e-05,2]
[399579384,1766519879232,-500.0,6.886e-05,2]
[399579385,1766519879266,-500.0,6.886e-05,2]
[399579386,1766519879298,-500.0,6.886e-05,2]
[399579387,1766519879329,-500.0,6.886e-05,2]
[399579388,1766519879681,-500.0,6.886e-05,2]
[399579389,1766519879814,-500.0,6.886e-05,2]
[399579390,1766519879842,-500.0,6.886e-05,2]
[399579391,1766519879872,-500.0,6.886e-05,2]
[399579392,1766519879902,-500.0,6.886e-05,2]
[399579393,1766519879931,-500.0,6.886e-05,2]
[399579394,1766519879961,-500.0,6.886e-05,2]
[399579395,1766519879990,-171.79057813,6.886e-05,2]
[399579396,1766519880021,-500.0,6.886e-05,2]
[399579397,1766519880052,-500.0,6.886e-05,2]
[399579398,1766519880082,-156.42884374,6.886e-05,2]
[399579399,1766519880471,-189.84150324,6.886e-05,2]
[399579400,1766519880485,-153.72965302,6.886e-05,2]
[399579401,1766519880496,-300.890988,6.886e-05,2]
[399579402,1766519880505,-45.37935898,6.886e-05,2]
[399579403,1766519880534,150.0,4.2e-07,2]
[399579404,1766519882092,-454.62064102,6.886e-05,2]
[399579405,1766519882123,-500.0,6.886e-05,2]
[399579406,1766519882153,-500.0,6.886e-05,2]
[399579407,1766519882184,-500.0,6.886e-05,2]
[399579408,1766519882216,-451.12821959,6.886e-05,2]
[399579409,1766519882247,-500.0,6.886e-05,2]
[399579410,1766519882280,-500.0,6.886e-05,2]
[399579411,1766519882312,-500.0,6.886e-05,2]
[399579412,1766519882346,-500.0,6.886e-05,2]
[399579413,1766519882378,-500.0,6.886e-05,2]
[399579414,1766519882548,-188.51227878,6.886e-05,2]
[399579415,1766519885592,-300.0,6.885e-05,2]
[399579416,1766519885623,-311.48772122,6.886e-05,2]
[399579417,1766519885654,-500.0,6.886e-05,2]
[399579418,1766519885685,-500.0,6.886e-05,2]
[399579419,1766519885810,-6777.03455756,6.887e-05,2]
[399579420,1766519885830,-10000.01,6.887e-05,2]
[399579421,1766519894913,-964.51860206,6.818e-05,2]
[399579422,1766519897009,-318.24977511,6.818e-05,2]
[399579423,1766519897840,5000.0,6.786e-05,2]
[399579424,1766519899175,-403.70845104,6.818e-05,2]
[399579425,1766519901295,-214.15,6.818e-05,2]
[399579426,1766519903806,-3099.37317179,6.818e-05,2]
[399579427,1766519913581,3801.26365642,6.818e-05,2]
[399579428,1766519913605,1198.73634358,6.818e-05,2]
[399579429,1766519921895,5000.0,6.818e-05,2]
[399579431,1766519937459,842.2151496,6.818e-05,2]
[399579432,1766519945492,2959.05850682,6.818e-05,2]
[399579433,1766519945516,2040.94149318,6.818e-05,2]
[399579434,1766519968253,5000.0,6.818e-05,2]
[399579435,1766519991020,2959.06850682,6.818e-05,2]
[399579436,1766519991044,2040.93149318,6.818e-05,2]
[399579437,1766520006703,3008.6354807,6.818e-05,2]
[399579438,1766520014435,4950.44302612,6.818e-05,2]
[399579439,1766520014459,49.55697388,6.818e-05,2]
[399579440,1766520030556,5000.0,6.818e-05,2]
[399579441,1766520038610,4950.45302612,6.818e-05,2]
[399579442,1766520038635,49.54697388,6.818e-05,2]
[399579443,1766520061411,5000.0,6.818e-05,2]
[399579444,1766520084687,4950.46302612,6.818e-05,2]
[399579445,1766520108015,-49.53697388,6.818e-05,2]
[399579446,1766520108043,-195.9353418,6.851e-05,2]
[399579447,1766520129282,5000.0,6.788e-05,2]
[399579448,1766520152037,5000.0,6.788e-05,2]
[399579449,1766520174821,0.01,6.788e-05,2]
[399579450,1766520174850,4999.99,6.788e-05,2]
[399579454,1766520198451,5000.0,6.788e-05,2]
[399579455,1766520221715,0.02,6.788e-05,2]
[399579456,1766520221742,4999.98,6.788e-05,2]
[399579457,1766520244369,5000.0,6.788e-05,2]
[399579458,1766520267595,0.03,6.788e-05,2]
[399579459,1766520267618,4999.97,6.788e-05,2]
[399579460,1766520291058,5000.0,6.788e-05,2]
[399579461,1766520313826,0.04,6.788e-05,2]
[399579462,1766520313852,4999.96,6.788e-05,2]
[399579463,1766520336649,5000.0,6.788e-05,2]
[399579464,1766520360763,0.05,6.788e-05,2]
[399579465,1766520360820,4999.95,6.788e-05,2]
[399579466,1766520383649,5000.0,6.788e-05,2]
[399579467,1766520407722,0.06,6.788e-05,2]
[399579468,1766520407749,4999.94,6.788e-05,2]
[399579469,1766520430525,5000.0,6.788e-05,2]
[399579470,1766520453381,0.07,6.788e-05,2]
[399579471,1766520453409,4999.93,6.788e-05,2]
[399579476,1766520476230,5000.0,6.788e-05,2]
[399579477,1766520499011,0.08,6.788e-05,2]
[399579478,1766520499035,4999.92,6.788e-05,2]
[399579479,1766520516752,178.553047,5.934e-05,2]
[399579480,1766520521787,4821.536953,6.788e-05,2]
[399579481,1766520521816,178.463047,6.788e-05,2]
[399579482,1766520537907,725.75768502,6.788e-05,2]
[399579483,1766520545793,5000.0,6.788e-05,2]
[399579486,1766520568905,4095.78926798,6.788e-05,2]
[399579487,1766520568929,904.21073202,6.788e-05,2]
[399579488,1766520591711,5000.0,6.788e-05,2]
[399579489,1766520614617,4095.79926798,6.788e-05,2]
[399579490,1766520614641,904.20073202,6.788e-05,2]
[399579553,1766520632640,-248.29090667,6.867e-05,2]
[399579555,1766520632650,-517.0,6.867e-05,2]
[399579557,1766520632660,-1200.0,6.883e-05,2]
[399579559,1766520632671,-1200.0,6.883e-05,2]
[399579561,1766520632681,-300.0,6.884e-05,2]
[399579563,1766520632691,-300.0,6.884e-05,2]
[399579566,1766520632701,-300.0,6.884e-05,2]
[399579568,1766520632712,-300.0,6.884e-05,2]
[399579570,1766520632723,-500.0,6.885e-05,2]
[399579572,1766520632732,-500.0,6.885e-05,2]
[399579574,1766520632742,-500.0,6.885e-05,2]
[399579576,1766520632751,-500.0,6.885e-05,2]
[399579578,1766520632761,-500.0,6.885e-05,2]
[399579579,1766520632771,-424.65094943,6.885e-05,2]
[399579582,1766520632787,-75.34905057,6.885e-05,2]
[399579584,1766520632797,-500.0,6.885e-05,2]
[399579586,1766520632806,-158.25458019,6.885e-05,2]
[399579588,1766520632818,-34.33050168,6.885e-05,2]
[399579590,1766520632828,-500.0,6.885e-05,2]
[399579593,1766520632840,-500.0,6.885e-05,2]
[399579595,1766520632850,-500.0,6.885e-05,2]
[399579597,1766520632859,-500.0,6.885e-05,2]
[399579599,1766520632869,-500.0,6.885e-05,2]
[399579601,1766520632879,-500.0,6.885e-05,2]
[399579602,1766520632889,-500.0,6.885e-05,2]
[399579605,1766520632899,-517.35995654,6.885e-05,2]
[399579607,1766520632909,-500.0,6.885e-05,2]
[399579608,1766520632918,-500.0,6.885e-05,2]
[399579611,1766520632928,-500.0,6.885e-05,2]
[399579613,1766520632938,-500.0,6.885e-05,2]
[399579615,1766520632948,-500.0,6.885e-05,2]
[399579617,1766520632959,-500.0,6.885e-05,2]
[399579619,1766520632968,-500.0,6.885e-05,2]
[399579620,1766520632979,-500.0,6.885e-05,2]
[399579622,1766520632989,-374.32462505,6.885e-05,2]
[399579624,1766520632999,-477.1073795,6.885e-05,2]
[399579626,1766520633009,-541.40961528,6.885e-05,2]
[399579628,1766520633019,-500.0,6.886e-05,2]
[399579631,1766520633030,-500.0,6.886e-05,2]
[399579633,1766520633039,-500.0,6.886e-05,2]
[399579635,1766520633050,-500.0,6.886e-05,2]
[399579636,1766520633059,-500.0,6.886e-05,2]
[399579638,1766520633069,-199.99999999,6.886e-05,2]
[399579641,1766520633080,-214.65049341,6.886e-05,2]
[399579643,1766520633089,-500.0,6.886e-05,2]
[399579645,1766520633099,-500.0,6.886e-05,2]
[399579646,1766520633110,-500.0,6.886e-05,2]
[399579648,1766520633119,-500.0,6.886e-05,2]
[399579651,1766520633132,-500.0,6.886e-05,2]
[399579653,1766520633142,-500.0,6.886e-05,2]
[399579655,1766520633152,-500.0,6.886e-05,2]
[399579657,1766520633161,-249.48319678,6.886e-05,2]
[399579659,1766520633171,-500.0,6.886e-05,2]
[399579661,1766520633180,-500.0,6.886e-05,2]
[399579663,1766520633191,-500.0,6.886e-05,2]
[399579665,1766520633200,-500.0,6.886e-05,2]
[399579667,1766520633210,-500.0,6.886e-05,2]
[399579669,1766520633220,-500.0,6.886e-05,2]
[399579671,1766520633229,-500.0,6.886e-05,2]
[399579673,1766520633239,-500.0,6.886e-05,2]
[399579675,1766520633249,-300.85189272,6.886e-05,2]
[399579676,1766520633259,-500.0,6.886e-05,2]
[399579677,1766520633269,-500.0,6.886e-05,2]
[399579678,1766520633279,-500.0,6.886e-05,2]
[399579679,1766520633290,-500.0,6.886e-05,2]
[399579680,1766520633300,-500.0,6.886e-05,2]
[399579681,1766520633310,-500.0,6.886e-05,2]
[399579682,1766520633319,-500.0,6.886e-05,2]
[399579683,1766520633329,-500.0,6.886e-05,2]
[399579684,1766520633339,-500.0,6.886e-05,2]
[399579685,1766520633349,-500.0,6.886e-05,2]
[399579686,1766520633359,-500.0,6.886e-05,2]
[399579687,1766520633369,-500.0,6.886e-05,2]
[399579688,1766520633379,-500.0,6.886e-05,2]
[399579689,1766520633389,-404.06039229,6.886e-05,2]
[399579690,1766520633399,-500.0,6.886e-05,2]
[399579691,1766520633408,-534.90517495,6.886e-05,2]
[399579692,1766520633418,-500.0,6.886e-05,2]
[399579693,1766520633429,-500.0,6.886e-05,2]
[399579694,1766520633443,-500.0,6.886e-05,2]
[399579695,1766520633453,-500.0,6.886e-05,2]
[399579696,1766520633463,-500.0,6.886e-05,2]
[399579697,1766520633475,-500.0,6.886e-05,2]
[399579698,1766520633486,-500.0,6.886e-05,2]
[399579699,1766520633495,-500.0,6.886e-05,2]
[399579700,1766520633505,-500.0,6.886e-05,2]
[399579701,1766520633516,-500.0,6.886e-05,2]
[399579702,1766520633526,-500.0,6.886e-05,2]
[399579703,1766520633537,-500.0,6.886e-05,2]
[399579704,1766520633547,-32529.1005748,6.887e-05,2]
[399579705,1766520633564,-183483.34004321,6.887e-05,2]
[399579706,1766520633573,-907.76615434,6.892e-05,2]
[399579707,1766520633583,-152.01016099,6.892e-05,2]
[399579708,1766520633593,-907.76615434,6.941e-05,2]
[399579709,1766520633603,-2168.05984027,6.946e-05,2]
[399579710,1766520633613,-500.0,6.959e-05,2]
[399579711,1766520633623,-151.0,6.959e-05,2]
[399579712,1766520633633,-500.0,6.959e-05,2]
[399579713,1766520633643,-151.0,6.959e-05,2]
[399579714,1766520633653,-151.0,6.959e-05,2]
[399579715,1766520633663,-151.0,6.959e-05,2]
[399579716,1766520633673,-151.0,6.959e-05,2]
[399579717,1766520633683,-151.0,6.959e-05,2]
[399579718,1766520633693,-151.0,6.959e-05,2]
[399579719,1766520633703,-533.88981491,6.959e-05,2]
[399579720,1766520633713,-151.0,6.959e-05,2]
[399579721,1766520633722,-151.0,6.959e-05,2]
[399579722,1766520633732,-151.0,6.959e-05,2]
[399579723,1766520633741,-151.0,6.959e-05,2]
[399579724,1766520633751,-151.0,6.959e-05,2]
[399579725,1766520633761,-151.0,6.959e-05,2]
[399579726,1766520633771,-1500.82334127,6.959e-05,2]
[399579727,1766520633780,-377.03206945,6.986e-05,2]
[399579728,1766520633790,-155.0,6.987e-05,2]
[399579729,1766520633816,-155.0,6.987e-05,2]
[399579730,1766520633826,-155.0,6.987e-05,2]
[399579731,1766520633836,-155.0,6.987e-05,2]
[399579732,1766520633846,-155.0,6.987e-05,2]
[399579733,1766520633856,-155.0,6.987e-05,2]
[399579734,1766520633867,-155.0,6.987e-05,2]
[399579735,1766520633877,-155.0,6.987e-05,2]
[399579736,1766520633887,-155.0,6.987e-05,2]
[399579737,1766520633897,-155.0,6.987e-05,2]
[399579738,1766520633908,-155.0,6.987e-05,2]
[399579739,1766520633918,-155.0,6.987e-05,2]
[399579740,1766520633928,-155.0,6.987e-05,2]
[399579741,1766520633938,-155.0,6.987e-05,2]
[399579742,1766520633948,-155.0,6.987e-05,2]
[399579743,1766520633959,-155.0,6.987e-05,2]
[399579744,1766520633968,-155.0,6.987e-05,2]
[399579745,1766520633979,-155.0,6.987e-05,2]
[399579746,1766520633989,-155.0,6.987e-05,2]
[399579747,1766520633999,-155.0,6.987e-05,2]
[399579749,1766520634009,-155.0,6.987e-05,2]
[399579750,1766520634020,-155.0,6.987e-05,2]
[399579752,1766520634030,-155.0,6.987e-05,2]
[399579753,1766520634040,-155.0,6.987e-05,2]
[399579754,1766520634050,-155.0,6.987e-05,2]
[399579755,1766520634061,-155.0,6.987e-05,2]
[399579756,1766520634071,-155.0,6.987e-05,2]
[399579757,1766520634081,-155.0,6.987e-05,2]
[399579758,1766520634091,-155.0,6.987e-05,2]
[399579759,1766520634102,-155.0,6.987e-05,2]
[399579760,1766520634111,-169.5718607,6.987e-05,2]
[399579761,1766520634121,-155.0,6.987e-05,2]
[399579762,1766520634131,-907.76615434,6.99e-05,2]
[399579763,1766520634142,-267.71232588,7.013e-05,2]
[399579764,1766520634153,-305.95694386,7.013e-05,2]
[399579765,1766520634164,-477.57966705,7.013e-05,2]
[399579766,1766520634174,-434.04601407,7.013e-05,2]
[399579767,1766520634185,-781.28282532,7.013e-05,2]
[399579768,1766520634196,-383.93687265,7.013e-05,2]
[399579769,1766520634206,-323.52543711,7.013e-05,2]
[399579770,1766520634216,-582.3457868,7.013e-05,2]
[399579771,1766520634226,-691.08637076,7.013e-05,2]
[399579772,1766520634236,-1035.28139876,7.013e-05,2]
[399579773,1766520634247,-1228.59799247,7.013e-05,2]
[399579774,1766520634257,-1917.76467887,7.013e-05,2]
[399579775,1766520634267,-1617.62718557,7.013e-05,2]
[399579776,1766520634278,-253.43,7.018e-05,2]
[399579777,1766520634289,-598.7514956,7.02e-05,2]
[399579778,1766520634300,-598.7514956,7.02e-05,2]
[399579779,1766520634311,-598.7514956,7.02e-05,2]
[399579780,1766520634321,-598.7514956,7.02e-05,2]
[399579781,1766520634331,-300.0,7.022e-05,2]
[399579782,1766520634342,-300.0,7.022e-05,2]
[399579783,1766520634352,-300.0,7.022e-05,2]
[399579784,1766520634362,-300.0,7.022e-05,2]
[399579785,1766520634372,-300.0,7.022e-05,2]
[399579786,1766520634382,-300.0,7.022e-05,2]
[399579787,1766520634392,-300.0,7.022e-05,2]
[399579788,1766520634403,-300.0,7.022e-05,2]
[399579789,1766520634412,-300.0,7.022e-05,2]
[399579790,1766520634422,-300.0,7.022e-05,2]
[399579791,1766520634436,-300.0,7.022e-05,2]
[399579792,1766520634446,-300.0,7.022e-05,2]
[399579793,1766520634457,-300.0,7.022e-05,2]
[399579794,1766520634466,-300.0,7.022e-05,2]
[399579795,1766520634478,-300.0,7.022e-05,2]
[399579796,1766520634487,-600.0,7.022e-05,2]
[399579797,1766520634498,-907.76615434,7.038e-05,2]
[399579798,1766520634509,-1388.94724502,7.039e-05,2]
[399579799,1766520634520,-591.35,7.08e-05,2]
[399579800,1766520634530,-330.18399211,7.083e-05,2]
[399579801,1766520634540,-217.9617665,7.087e-05,2]
[399579802,1766520634550,-249.09916172,7.087e-05,2]
[399579803,1766520634561,-388.82822274,7.087e-05,2]
[399579804,1766520634571,-907.76615434,7.087e-05,2]
[399579805,1766520634581,-598.7514956,7.1e-05,2]
[399579806,1766520634591,-184.2299451,7.1e-05,2]
[399579807,1766520634601,-2327.05376407,7.118e-05,2]
[399579808,1766520634611,-20725.0525159,7.18e-05,2]
[399579809,1766520634622,-2440.23427299,7.24e-05,2]
[399579810,1766520634632,-553.64373807,7.507e-05,2]
[399579811,1766520634642,-1680.0,7.571e-05,2]
[399579812,1766520634652,-296.0,7.572e-05,2]
[399579813,1766520634662,-420.0,7.572e-05,2]
[399579814,1766520634672,-420.0,7.572e-05,2]
[399579815,1766520634682,-207.5222301,7.65e-05,2]
[399579816,1766520634692,-720.0,7.724e-05,2]
[399579817,1766520634702,-373.54001418,7.756e-05,2]
[399579818,1766520634712,-664.07113632,7.862e-05,2]
[399579819,1766520634722,-1036.57353935,7.968e-05,2]
[399579820,1766520634732,-320.46547111,7.975e-05,2]
[399579821,1766520634742,-574.12855637,8.055e-05,2]
[399579822,1766520634752,-366.2462527,8.083e-05,2]
[399579823,1766520634762,-4624.3842869,8.151e-05,2]
[399579824,1766520634772,-311.70108596,8.185e-05,2]
[399579825,1766520634782,-571.68751008,8.189e-05,2]
[399579826,1766520634792,-313.49741369,8.219e-05,2]
[399579827,1766520634801,-150.0,8.219e-05,2]
[399579828,1766520634811,-1973.0,8.328e-05,2]
[399579829,1766520634820,-587.0,8.329e-05,2]
[399579830,1766520634830,-193.0,8.329e-05,2]
[399579831,1766520634840,-1031.8396065,8.367e-05,2]
[399579832,1766520634849,-864.0,8.497e-05,2]
[399579833,1766520634859,-595.37131296,8.603e-05,2]
[399579834,1766520634869,-753.69,8.678e-05,2]
[399579835,1766520634879,-292.98326987,8.867e-05,2]
[399579836,1766520634889,-250.0,8.948e-05,2]
[399579837,1766520634899,-1507.39,9.091e-05,2]
[399579838,1766520634909,-617.40005154,9.151e-05,2]
[399579839,1766520634919,-823.0,9.162e-05,2]
[399579840,1766520634929,-1000.0,9.347e-05,2]
[399579841,1766520634940,-2160.0,9.443e-05,2]
[399579842,1766520634950,-1363.0,9.443e-05,2]
[399579843,1766520634960,-416.0,9.446e-05,2]
[399579844,1766520634970,-2261.08,9.505e-05,2]
[399579845,1766520634980,-302.8541235,9.534e-05,2]
[399579846,1766520634990,-605.2612342,9.534e-05,2]
[399579847,1766520635000,-380.3709314,9.589e-05,2]
[399579848,1766520635010,-375.8695034,9.589e-05,2]
[399579849,1766520635020,-375.8695034,9.589e-05,2]
[399579850,1766520635030,-150.0,9.671e-05,2]
[399579851,1766520635040,-150.0,9.671e-05,2]
[399579852,1766520635050,-150.0,9.671e-05,2]
[399579853,1766520635060,-640.24385345,9.699e-05,2]
[399579854,1766520635070,-444.3925829,9.863e-05,2]
[399579855,1766520635079,-302.8541235,9.863e-05,2]
[399579856,1766520635089,-302.8541235,9.863e-05,2]
[399579857,1766520635099,-302.8541235,9.863e-05,2]
[399579858,1766520635110,-302.8541235,9.863e-05,2]
[399579859,1766520635119,-302.8541235,9.863e-05,2]
[399579860,1766520635130,-302.8541235,9.863e-05,2]
[399579861,1766520635139,-302.8541235,9.863e-05,2]
[399579862,1766520635149,-302.8541235,9.863e-05,2]
[399579863,1766520635159,-302.8541235,9.863e-05,2]
[399579864,1766520635169,-302.8541235,9.863e-05,2]
[399579865,1766520635180,-302.8541235,9.863e-05,2]
[399579866,1766520635190,-302.8541235,9.863e-05,2]
[399579867,1766520635200,-302.8541235,9.863e-05,2]
[399579868,1766520635211,-302.8541235,9.863e-05,2]
[399579869,1766520635221,-302.8541235,9.863e-05,2]
[399579870,1766520635231,-302.8541235,9.863e-05,2]
[399579871,1766520635241,-302.8541235,9.863e-05,2]
[399579872,1766520635251,-302.8541235,9.863e-05,2]
[399579873,1766520635261,-302.8541235,9.863e-05,2]
[399579874,1766520635271,-302.8541235,9.863e-05,2]
[399579875,1766520635281,-302.8541235,9.863e-05,2]
[399579876,1766520635297,-302.8541235,9.863e-05,2]
[399579877,1766520635307,-302.8541235,9.863e-05,2]
[399579878,1766520635317,-302.8541235,9.863e-05,2]
[399579879,1766520635327,-302.8541235,9.863e-05,2]
[399579880,1766520635337,-302.8541235,9.863e-05,2]
[399579881,1766520635347,-302.8541235,9.863e-05,2]
[399579882,1766520635357,-302.8541235,9.863e-05,2]
[399579883,1766520635367,-3014.78,9.918e-05,2]
[399579884,1766520635377,-1023.41584917,0.0001,2]
[399579885,1766520635387,-154.28,0.0001,2]
[399579886,1766520635397,-1152.0,0.00010078,2]
[399579887,1766520635407,-154.28,0.000101,2]
[399579888,1766520635418,-1041.66666667,0.00010128,2]
[399579889,1766520635428,-160.0,0.00010129,2]
[399579890,1766520635440,-663.93287602,0.00010247,2]
[399579891,1766520635450,-1000.0,0.00010281,2]
[399579892,1766520635460,-244.0,0.00010281,2]
[399579893,1766520635471,-154.28,0.000103,2]
[399579894,1766520635481,-3768.47,0.00010331,2]
[399579895,1766520635491,-154.28,0.000104,2]
[399579896,1766520635501,-154.28,0.000105,2]
[399579897,1766520635511,-154.28,0.000106,2]
[399579898,1766520635521,-302.8541235,0.00010685,2]
[399579899,1766520635531,-302.8541235,0.00010685,2]
[399579900,1766520635541,-302.8541235,0.00010685,2]
[399579901,1766520635551,-4522.17,0.00010744,2]
[399579902,1766520635560,-688.49839244,0.00010795,2]
[399579903,1766520635570,-154.28,0.000108,2]
[399579904,1766520635579,-337.67563307,0.00010867,2]
[399579905,1766520635589,-154.28,0.000109,2]
[399579906,1766520635599,-500.0,0.00010958,2]
[399579907,1766520635609,-500.0,0.00010958,2]
[399579908,1766520635619,-500.0,0.00010958,2]
[399579909,1766520635628,-500.0,0.00010958,2]
[399579910,1766520635639,-500.0,0.00010958,2]
[399579911,1766520635648,-500.0,0.00010958,2]
[399579912,1766520635658,-500.0,0.00010958,2]
[399579913,1766520635670,-500.0,0.00010958,2]
[399579914,1766520635680,-500.0,0.00010958,2]
[399579915,1766520636069,-500.0,0.00010958,2]
[399579916,1766520636080,-500.0,0.00010958,2]
[399579917,1766520636090,-500.0,0.00010958,2]
[399579918,1766520636099,-500.0,0.00010958,2]
[399579919,1766520636109,-500.0,0.00010958,2]
[399579920,1766520636119,-500.0,0.00010958,2]
[399579921,1766520636129,-500.0,0.00010958,2]
[399579922,1766520636139,-269.56409975,0.00010958,2]
[399579923,1766520636150,-999.0,0.00010959,2]
[399579924,1766520636160,-500.0,0.00010959,2]
[399579925,1766520636170,-500.0,0.00010959,2]
[399579926,1766520636181,-611.27773366,0.00010959,2]
[399579927,1766520636191,-154.28,0.00011,2]
[399579928,1766520636200,-152.0,0.00011086,2]
[399579929,1766520636210,-5275.86,0.00011157,2]
[399579930,1766520636220,-154.28,0.000112,2]
[399579931,1766520636231,-154.28,0.000113,2]
[399579932,1766520636241,-1000.0,0.00011309,2]
[399579933,1766520636251,-492.0,0.00011309,2]
[399579934,1766520636261,-713.97283296,0.00011343,2]
[399579935,1766520636271,-154.28,0.000114,2]
[399579936,1766520636280,-154.28,0.000115,2]
[399579937,1766520636290,-6029.55,0.00011571,2]
[399579938,1766520636299,-154.28,0.000117,2]
[399579939,1766520636310,-154.28,0.000118,2]
[399579940,1766520636320,-67730.52326019,0.00011859,2]
[399579957,1766520637988,-961.71379467,9.764e-05,2]
[399579959,1766520638000,-1703.45085993,9.764e-05,2]
[399579961,1766520638012,-2334.8353454,9.764e-05,2]
[399579963,1766520638022,-138.16019716,0.00011859,2]
[399579965,1766520638034,-571.54119118,0.00011859,2]
[399579968,1766520638047,-562.31420507,0.00011859,2]
[399579970,1766520638059,-435.0,0.00011859,2]
[399579972,1766520638070,-11715.93504489,0.00011859,2]
[399579976,1766520638097,-3032.07899266,0.00011859,2]
[399580168,1766520640463,-3e-08,0.00011859,2]
[399580173,1766520640498,-733.73686278,0.00011859,2]
[399580175,1766520640511,-890.80323467,0.00011859,2]
[399580177,1766520640522,-3080.82232218,0.00011859,2]
[399580179,1766520640533,-528.89051107,0.00011859,2]
[399580441,1766520643375,-408.37,8.656e-05,2]
[399580443,1766520643385,-816.73,9.069e-05,2]
[399580445,1766520643395,-734.32071875,0.00011859,2]
[399580447,1766520643406,-420.0,0.00011859,2]
[399580611,1766520646125,-1225.1,9.481e-05,2]
[399580613,1766520646134,-1132.62674961,9.893e-05,2]
[399580647,1766520646652,-500.83325039,9.893e-05,2]
[399580649,1766520646661,-406.38639213,0.00010305,2]
[399580651,1766520646672,-778.77913156,0.00010305,2]
[399580669,1766520678559,165.5803115,4.93e-05,2]
[399580681,1766520783363,8930.22895648,6.785e-05,2]
[399580682,1766520783392,10000.01,6.785e-05,2]
[399580683,1766520783417,10000.01,6.785e-05,2]
[399580684,1766520783445,10000.01,6.785e-05,2]
[399580685,1766520783472,10000.01,6.785e-05,2]
[399580686,1766520783499,10000.01,6.785e-05,2]
[399580687,1766520783526,10000.01,6.785e-05,2]
[399580688,1766520783553,10000.01,6.785e-05,2]
[399580689,1766520783579,10000.01,6.785e-05,2]
[399580690,1766520783604,10000.01,6.785e-05,2]
[399580691,1766520794234,-1200.0,6.784e-05,2]
[399580692,1766520794935,-621.75048689,6.785e-05,2]
[399580693,1766520797074,-6987.57865032,6.785e-05,2]
[399580694,1766520797346,-10000.01,6.785e-05,2]
[399580695,1766520797477,-10000.01,6.785e-05,2]
[399580696,1766520797609,-10000.01,6.785e-05,2]
[399580697,1766520797708,-10000.01,6.785e-05,2]
[399580698,1766520797802,-10000.01,6.785e-05,2]
[399580699,1766520797934,-10000.01,6.785e-05,2]
[399580700,1766520798054,-10000.01,6.785e-05,2]
[399580701,1766520799782,-176.58112331,6.785e-05,2]
[399580702,1766520799953,-10000.01,6.785e-05,2]
[399580703,1766520801904,-251.30459132,6.785e-05,2]
[399580704,1766520802976,-10000.01,6.785e-05,2]
[399580705,1766520803496,-10000.01,6.785e-05,2]
[399580706,1766520803523,-10000.01,6.785e-05,2]
[399580707,1766520803543,-10000.01,6.785e-05,2]
[399580708,1766520803598,-10000.01,6.785e-05,2]
[399580709,1766520803743,-10000.01,6.785e-05,2]
[399580710,1766520803873,-10000.01,6.785e-05,2]
[399580711,1766520804005,-10000.01,6.785e-05,2]
[399580712,1766520805311,-205.54102854,6.785e-05,2]
[399580713,1766520807495,-242.37310353,6.785e-05,2]
[399580714,1766520809232,-157.31393336,6.785e-05,2]
[399580715,1766520811807,-337.93336422,6.785e-05,2]
[399580716,1766520815519,-176.78431186,6.785e-05,2]
[399580717,1766520819981,-193.6769582,6.785e-05,2]
[399580718,1766520821502,-347.0961284,6.785e-05,2]
[399580719,1766520824111,-500.0104944,6.785e-05,2]
[399580720,1766520827018,-362.31422729,6.785e-05,2]